bitfinex-derivatives/quotes_SOLF0:USTF0_20241203
["timestamp","ask_amount","ask_price","bid_price","bid_amount"]
[1733233242090,33.24242408,222.35,222.25,0.82602507]
[1733233242280,33.24242408,222.35,222.26,2.60304664]
[1733233242681,3.42,222.42,222.27,2.60304664]
[1733233242879,3.42,222.42,222.28,12.08047549]
[1733233243083,3.42,222.42,222.28,7.0415972]
[1733233243283,33.24242408,222.39,222.28,7.0415972]
[1733233243487,33.24242408,222.39,222.29,2.60304664]
[1733233243686,33.24242408,222.39,222.28,7.0415972]
[1733233244076,2.2484,222.34,222.28,7.0415972]
[1733233244891,33.24242408,222.39,222.28,7.0415972]
[1733233245193,3.42,222.42,222.28,7.0415972]
[1733233245486,3.42,222.42,222.29,2.2489]
[1733233245880,3.42,222.42,222.3,4.8560413]
[1733233246082,36.66242408,222.44,222.31,2.6072413]
[1733233246286,2.2478,222.41,222.32,2.6072413]
[1733233246491,33.24242408,222.44,222.29,1.3526]
[1733233246492,33.24242408,222.44,222.33,2.2485]
[1733233246785,2.248,222.38,222.29,1.3526]
[1733233246989,33.24242408,222.44,222.29,3.6015]
[1733233247183,8.53383509,222.43,222.29,3.6015]
[1733233247383,8.53383509,222.42,222.29,1.3526]
[1733233247584,8.53383509,222.41,222.29,1.3526]
[1733233247785,8.53383509,222.4,222.29,1.3526]
[1733233247986,8.53383509,222.39,222.29,1.3526]
[1733233248291,8.53383509,222.38,222.29,1.3526]
[1733233248494,8.53383509,222.37,222.29,1.3526]
[1733233248695,8.52844038,222.36,222.29,1.3526]
[1733233248894,33.24242408,222.44,222.29,1.3526]
[1733233249093,2.2479,222.4,222.29,1.3526]
[1733233249295,8.52983013,222.39,222.33,2.2484]
[1733233249491,8.52983013,222.38,222.31,3.42]
[1733233249691,10.77793013,222.37,222.32,1.2917]
[1733233249891,2.2481,222.37,222.32,1.2917]
[1733233250095,2.2482,222.36,222.32,1.2917]
[1733233250300,33.24242408,222.44,222.32,1.2917]
[1733233250694,2.2484,222.35,222.32,1.2917]
[1733233250997,33.24242408,222.44,222.32,1.2917]
[1733233251791,33.24242408,222.44,222.31,3.42]
[1733233251792,2.2485,222.33,222.31,3.42]
[1733233252096,33.24242408,222.44,222.31,3.42]
[1733233252292,2.2485,222.34,222.29,1.3526]
[1733233252692,3.42,222.42,222.29,1.3526]
[1733233254197,2.2484,222.34,222.29,3.6015]
[1733233254498,3.42,222.42,222.29,1.3526]
[1733233254894,20.52624825,222.43,222.29,1.3526]
[1733233255201,20.52624825,222.43,222.3,1.3089]
[1733233255596,20.52624825,222.43,222.32,2.2485]
[1733233255801,20.52624825,222.43,222.3,1.3089]
[1733233256297,2.248,222.38,222.33,2.2484]
[1733233256596,3.42,222.46,222.3,1.3089]
[1733233256797,2.2478,222.41,222.35,2.2482]
[1733233256998,3.42,222.46,222.35,2.2482]
[1733233257593,3.42,222.46,222.34,2.2484]
[1733233257594,2.2478,222.4,222.34,2.2484]
[1733233257999,3.42,222.46,222.3,1.3089]
[1733233258605,2.2477,222.42,222.33,2.2485]
[1733233258809,3.42,222.46,222.33,2.2485]
[1733233259105,3.42,222.46,222.3,1.3089]
[1733233259302,2.2479,222.4,222.33,2.2485]
[1733233259508,2.2479,222.4,222.3,1.3089]
[1733233259709,3.42,222.46,222.3,1.3089]
[1733233259904,7.76475681,222.45,222.3,1.3089]
[1733233260104,20.52624825,222.43,222.3,1.3089]
[1733233260311,7.76475681,222.42,222.3,1.3089]
[1733233260507,7.76475681,222.41,222.3,1.3089]
[1733233260703,7.76475681,222.4,222.3,1.3089]
[1733233260912,7.76475681,222.39,222.3,1.3089]
[1733233261115,2.2487,222.31,222.29,1.3526]
[1733233261316,20.52624825,222.39,222.25,3.42]
[1733233261610,7.24648909,222.38,222.25,3.42]
[1733233261814,2.2489,222.3,222.25,3.42]
[1733233262011,20.52624825,222.35,222.21,3.42]
[1733233262208,2.2492,222.27,222.22,3.5661]
[1733233262815,2.2493,222.26,222.22,1.3166]
[1733233263117,20.52624825,222.35,222.22,1.3166]
[1733233263412,7.23646851,222.34,222.22,1.3166]
[1733233263616,23.94624825,222.39,222.22,1.3166]
[1733233263817,7.23664618,222.38,222.22,1.3166]
[1733233264011,7.23664618,222.37,222.23,20.52624825]
[1733233264210,25.01944825,222.53,222.22,1.3166]
[1733233264211,20.52624825,222.47,222.27,20.52624825]
[1733233264410,2.2474,222.44,222.28,3.22]
[1733233264618,7.23496049,222.46,222.28,3.22]
[1733233264916,7.23496049,222.45,222.35,2.2482]
[1733233265112,20.52624825,222.43,222.3,3.22]
[1733233265317,7.23496049,222.42,222.3,3.22]
[1733233265511,7.23496049,222.41,222.3,3.22]
[1733233265719,20.52624825,222.47,222.3,3.22]
[1733233266016,2.2478,222.4,222.3,3.22]
[1733233266218,20.52624825,222.47,222.3,3.22]
[1733233266421,7.22625804,222.46,222.3,3.22]
[1733233266716,20.52624825,222.47,222.31,20.52624825]
[1733233266717,7.22625804,222.45,222.31,20.52624825]
[1733233266917,20.52624825,222.47,222.31,20.52624825]
[1733233266918,7.22625804,222.44,222.31,20.52624825]
[1733233267118,7.22625804,222.43,222.31,20.52624825]
[1733233267317,20.52624825,222.47,222.3,3.22]
[1733233267621,7.22231316,222.46,222.3,3.22]
[1733233268018,2.2484,222.35,222.3,3.22]
[1733233268319,20.52624825,222.47,222.3,3.22]
[1733233268519,7.21950416,222.46,222.31,20.52624825]
[1733233268719,7.21950416,222.45,222.31,20.52624825]
[1733233268914,7.21950416,222.44,222.31,20.52624825]
[1733233269220,20.52624825,222.47,222.22,1.3166]
[1733233269416,7.21966908,222.46,222.27,20.52624825]
[1733233269615,2.2482,222.37,222.27,20.52624825]
[1733233269817,20.52624825,222.43,222.27,20.52624825]
[1733233270016,7.21840622,222.42,222.27,20.52624825]
[1733233270220,20.52624825,222.43,222.28,3.22]
[1733233270421,7.21883215,222.42,222.28,3.22]
[1733233270712,20.52624825,222.39,222.22,4.5366]
[1733233270919,3.22,222.38,222.22,4.5366]
[1733233271614,7.21868908,222.37,222.22,4.5366]
[1733233271814,3.22,222.38,222.22,4.5366]
[1733233272114,7.21770087,222.37,222.22,4.5366]
[1733233272314,3.22,222.38,222.22,4.5366]
[1733233272514,7.21561525,222.37,222.25,2.2493]
[1733233272715,7.21561525,222.36,222.22,4.5366]
[1733233272914,3.22,222.38,222.22,4.5366]
[1733233273114,7.21368537,222.37,222.26,2.2491]
[1733233273316,3.22,222.38,222.26,2.2491]
[1733233273518,2.2489,222.29,222.23,2.2495]
[1733233273709,2.2489,222.29,222.22,1.3166]
[1733233273710,20.52624825,222.35,222.22,1.3166]
[1733233274219,3.22,222.38,222.23,3.22]
[1733233274520,2.2489,222.3,222.24,2.2493]
[1733233274712,20.52624825,222.35,222.22,1.3166]
[1733233274914,7.21525933,222.34,222.22,1.3166]
[1733233275111,20.52624825,222.35,222.22,1.3166]
[1733233275316,7.21299722,222.34,222.22,1.3166]
[1733233275621,7.21495382,222.33,222.16,3.22]
[1733233275820,2.2493,222.25,222.16,4.5159]
[1733233276115,3.22,222.24,221.99,4.5039]
[1733233276315,46.82,222.4,222.09,20.52624825]
[1733233276316,3.22,222.23,222.09,20.52624825]
[1733233276520,3.22,222.26,222.09,20.52624825]
[1733233277321,3.22,222.26,222.15,2.2503]
[1733233277613,3.22,222.26,222.09,20.52624825]
[1733233277823,2.2499,222.2,222.09,20.52624825]
[1733233278020,3.22,222.3,222.13,20.92106825]
[1733233278319,20.52624825,222.3,222.17,2.2501]
[1733233278514,20.52624825,222.3,222.14,2.7428]
[1733233278821,2.249,222.29,222.22,2.2496]
[1733233279018,20.52624825,222.38,222.21,20.52624825]
[1733233279218,20.52624825,222.38,222.22,1.3]
[1733233279420,2.2487,222.31,222.22,1.3]
[1733233280218,20.52624825,222.34,222.19,3.22]
[1733233280418,7.22263054,222.33,222.19,3.22]
[1733233280713,7.22376632,222.32,222.19,3.22]
[1733233281020,2.2492,222.27,222.19,5.4699]
[1733233281219,20.52624825,222.3,222.15,1.3]
[1733233281420,23.74624825,222.34,222.15,4.52]
[1733233281619,2.249,222.28,222.15,4.52]
[1733233281823,23.74624825,222.34,222.17,20.52624825]
[1733233282121,3.22,222.34,222.17,20.52624825]
[1733233282415,2.2486,222.32,222.17,20.52624825]
[1733233282619,20.52624825,222.38,222.21,20.52624825]
[1733233282815,7.22264904,222.37,222.17,20.52624825]
[1733233283021,7.22264904,222.36,222.2,3.22]
[1733233283219,2.2488,222.31,222.25,2.2493]
[1733233283418,2.2488,222.31,222.2,3.22]
[1733233283716,20.52624825,222.38,222.2,3.22]
[1733233283917,2.2488,222.31,222.2,3.22]
[1733233284117,23.74624825,222.38,222.2,3.22]
[1733233284321,20.52624825,222.34,222.2,3.22]
[1733233284822,20.52624825,222.35,222.2,3.22]
[1733233285022,7.21858176,222.34,222.24,2.2494]
[1733233285218,20.52624825,222.35,222.2,3.22]
[1733233285422,3.22,222.38,222.2,3.22]
[1733233285619,2.2486,222.33,222.28,2.249]
[1733233285822,3.22,222.38,222.2,3.22]
[1733233286015,7.22065699,222.37,222.21,20.52624825]
[1733233286219,20.52624825,222.39,222.21,20.52624825]
[1733233286416,7.22195979,222.38,222.25,20.52624825]
[1733233286616,1.3744,222.42,222.26,2.6879]
[1733233286821,7.22833781,222.41,222.27,3.22]
[1733233287019,7.22833781,222.4,222.34,2.2484]
[1733233287216,7.22833781,222.39,222.27,4.6001]
[1733233287419,2.2482,222.37,222.3,2.2488]
[1733233287626,1.3744,222.42,222.27,4.6001]
[1733233287925,2.2479,222.4,222.36,2.2482]
[1733233288129,4.5329,222.44,222.27,4.6001]
[1733233288320,7.23439158,222.43,222.27,4.6001]
[1733233288621,7.23439158,222.42,222.27,4.6001]
[1733233289020,2.2483,222.36,222.27,4.6001]
[1733233289231,2.2483,222.36,222.28,3.22]
[1733233289520,20.52624825,222.43,222.28,3.22]
[1733233289825,7.16959745,222.42,222.28,3.22]
[1733233290034,2.2482,222.37,222.32,2.2485]
[1733233290322,7.16959745,222.41,222.32,2.2485]
[1733233290323,20.52624825,222.43,222.32,2.2485]
[1733233290524,2.2482,222.36,222.32,2.2486]
[1733233290724,20.52624825,222.43,222.28,3.22]
[1733233290924,7.17452021,222.42,222.28,3.22]
[1733233291120,7.17452021,222.41,222.32,2.2486]
[1733233291323,7.17452021,222.4,222.28,3.22]
[1733233291627,7.17452021,222.39,222.37,2.248]
[1733233291822,7.17452021,222.42,222.36,3.22]
[1733233292027,7.17452021,222.38,222.36,3.22]
[1733233292228,20.52624825,222.49,222.36,3.22]
[1733233292429,20.52624825,222.45,222.36,3.22]
[1733233292731,7.18815523,222.44,222.36,3.22]
[1733233293125,7.18815523,222.44,222.3,3.16]
[1733233293523,2.2479,222.39,222.34,2.2484]
[1733233293722,7.18815523,222.38,222.34,2.2484]
[1733233294335,7.18815523,222.38,222.27,1.3801]
[1733233294529,7.18815523,222.37,222.27,3.16]
[1733233294727,2.2483,222.35,222.3,2.2488]
[1733233294924,7.18815523,222.34,222.27,3.16]
[1733233295127,20.52624825,222.41,222.27,3.16]
[1733233295430,7.19000983,222.4,222.27,3.16]
[1733233295631,7.19000983,222.39,222.27,3.16]
[1733233295832,2.2482,222.36,222.31,2.2487]
[1733233296036,7.19000983,222.35,222.27,3.16]
[1733233296333,7.19000983,222.34,222.27,3.34566]
[1733233296533,7.19000983,222.33,222.27,3.34566]
[1733233296734,7.19000983,222.32,222.27,3.34566]
[1733233296930,2.2477,222.41,222.36,2.2482]
[1733233297132,7.1927222,222.4,222.36,2.2482]
[1733233297330,7.1927222,222.39,222.28,21.93414825]
[1733233297533,7.1927222,222.38,222.28,1.4079]
[1733233297736,7.1927222,222.37,222.28,4.5679]
[1733233298038,7.1927222,222.36,222.28,4.5679]
[1733233298233,7.1927222,222.35,222.28,4.5679]
[1733233298531,20.52624825,222.45,222.28,4.5679]
[1733233298532,7.1927222,222.34,222.28,4.5679]
[1733233298838,20.52624825,222.45,222.28,4.5679]
[1733233299527,20.52624825,222.45,222.34,2.2484]
[1733233300136,2.2481,222.38,222.33,2.2485]
[1733233300534,20.52624825,222.41,222.27,0.18566]
[1733233300741,1.3785,222.4,222.27,0.18566]
[1733233301134,2.2484,222.34,222.27,0.18566]
[1733233301835,2.2484,222.34,222.29,2.2489]
[1733233303239,2.2485,222.33,222.29,2.2489]
[1733233303628,1.3785,222.4,222.31,2.2487]
[1733233303833,2.248,222.38,222.27,0.18566]
[1733233304040,1.3785,222.4,222.27,0.18566]
[1733233304239,3.16,222.44,222.36,2.2482]
[1733233304433,3.16,222.44,222.28,1.3263]
[1733233305034,2.2479,222.39,222.28,1.3263]
[1733233305542,20.52624825,222.45,222.28,21.85254825]
[1733233305732,1.3428,222.5,222.32,20.52624825]
[1733233305933,20.52624825,222.56,222.36,20.52624825]
[1733233306139,2.2466,222.53,222.4,20.52624825]
[1733233306444,20.52624825,222.56,222.41,5.855]
[1733233306639,2.2464,222.54,222.41,5.855]
[1733233307043,20.52624825,222.56,222.41,5.855]
[1733233307355,2.2467,222.52,222.41,5.855]
[1733233307537,20.52624825,222.56,222.41,5.855]
[1733233307739,2.2466,222.53,222.41,5.855]
[1733233308139,2.2464,222.55,222.41,5.855]
[1733233308334,1.3003,222.57,222.41,2.695]
[1733233308542,1.3293,222.63,222.44,20.52624825]
[1733233308735,1.3293,222.63,222.44,12.60517861]
[1733233309639,1.3293,222.63,222.48,20.52624825]
[1733233309838,2.2457,222.61,222.48,20.52624825]
[1733233310043,1.3293,222.63,222.49,3.16]
[1733233310343,1.3293,222.63,222.49,1.77732233]
[1733233310536,1.3293,222.63,222.51,2.2467]
[1733233310735,1.3293,222.63,222.49,0.01702805]
[1733233311942,2.2462,222.56,222.5,2.2468]
[1733233312137,2.2462,222.56,222.44,12.60517861]
[1733233312138,3.16,222.59,222.44,3.16]
[1733233312639,2.247,222.49,222.41,1.2934]
[1733233312843,20.52624825,222.56,222.41,1.2934]
[1733233313047,20.52624825,222.48,222.34,1.2831]
[1733233313246,2.2476,222.42,222.34,2.2483]
[1733233313545,20.52624825,222.44,222.28,1.382]
[1733233313746,20.52624825,222.44,222.29,2.2489]
[1733233313937,2.6785,222.47,222.28,21.90824825]
[1733233314337,2.2475,222.43,222.28,21.90824825]
[1733233314641,2.6785,222.47,222.28,21.90824825]
[1733233315038,2.2478,222.4,222.28,21.90824825]
[1733233315536,2.6785,222.47,222.28,21.90824825]
[1733233315740,20.52624825,222.44,222.28,21.90824825]
[1733233316147,2.6785,222.47,222.28,21.90824825]
[1733233316345,2.2479,222.4,222.28,21.90824825]
[1733233316846,2.2479,222.4,222.34,2.2484]
[1733233317050,2.6785,222.47,222.33,3.16]
[1733233317438,2.6785,222.47,222.34,2.2483]
[1733233317439,2.2477,222.42,222.34,2.2483]
[1733233317845,2.6785,222.47,222.33,3.16]
[1733233319049,2.2478,222.41,222.34,2.2483]
[1733233319244,2.6785,222.47,222.28,1.382]
[1733233319245,20.52624825,222.44,222.28,1.382]
[1733233319449,3.16,222.43,222.28,4.542]
[1733233319645,2.2482,222.37,222.31,2.2487]
[1733233320046,3.16,222.43,222.28,4.542]
[1733233320352,3.16,222.43,222.3,2.2488]
[1733233320546,20.52624825,222.4,222.28,1.382]
[1733233320741,20.52624825,222.4,222.23,1.2831]
[1733233321148,2.2482,222.37,222.29,2.2489]
[1733233321348,20.52624825,222.4,222.23,1.2831]
[1733233321545,3.16,222.43,222.24,20.52624825]
[1733233321750,20.52624825,222.44,222.28,20.52624825]
[1733233321951,2.6785,222.47,222.32,20.52624825]
[1733233322453,2.6785,222.47,222.33,4.4553]
[1733233322846,20.52624825,222.44,222.24,21.92154825]
[1733233323048,20.52624825,222.4,222.24,1.3953]
[1733233323244,2.2487,222.32,222.25,2.2492]
[1733233323550,3.06,222.37,222.24,1.3953]
[1733233323746,3.06,222.37,222.24,4.4553]
[1733233323946,20.52624825,222.36,222.2,20.52624825]
[1733233324346,2.7293,222.35,222.2,20.52624825]
[1733233324946,2.7293,222.35,222.19,1.2737]
[1733233325155,2.7293,222.35,222.16,20.52624825]
[1733233325156,20.52624825,222.32,222.16,3.06]
[1733233325453,2.2491,222.28,222.2,2.2497]
[1733233325753,3.06,222.31,222.13,2.6127]
[1733233325955,3.06,222.31,222.14,11.48730942]
[1733233326155,2.2493,222.26,222.15,6.17638853]
[1733233326452,3.06,222.31,222.16,6.17638853]
[1733233326652,3.06,222.31,222.17,2.92619715]
[1733233326855,3.06,222.31,222.18,1.12546044]
[1733233327056,3.06,222.31,222.14,3.06]
[1733233327251,3.06,222.31,222.17,20.52624825]
[1733233327448,3.06,222.31,222.18,1.12560551]
[1733233327649,2.7293,222.35,222.21,20.52624825]
[1733233327956,60.28,222.53,222.25,20.52624825]
[1733233327957,3.06,222.46,222.25,20.52624825]
[1733233328152,46.8,222.53,222.22,3.06]
[1733233328153,23.58624825,222.47,222.29,20.52624825]
[1733233328345,23.58624825,222.47,222.34,2.2483]
[1733233328550,23.58624825,222.47,222.3,3.06]
[1733233328855,1.3668,222.49,222.3,3.06]
[1733233329053,1.3668,222.49,222.33,20.52624825]
[1733233329352,20.52624825,222.55,222.37,20.52624825]
[1733233329555,20.52624825,222.55,222.38,4.3894]
[1733233330060,2.7051,222.57,222.41,20.52624825]
[1733233330552,2.2462,222.56,222.49,2.2469]
[1733233330853,304.2225561,222.65,222.49,20.52624825]
[1733233331060,304.2225561,222.65,222.5,1.3294]
[1733233331757,20.52624825,222.58,222.39,2.731]
[1733233331953,3.06,222.57,222.4,1.3294]
[1733233332150,3.06,222.57,222.43,2.2475]
[1733233332151,2.2466,222.53,222.43,2.2475]
[1733233332354,5.6568,222.57,222.41,20.52624825]
[1733233332758,2.2464,222.54,222.45,2.2473]
[1733233332949,5.6568,222.57,222.41,20.52624825]
[1733233333155,3.06,222.62,222.45,3.06]
[1733233333350,304.2225561,222.65,222.45,23.58624825]
[1733233333351,2.663,222.64,222.45,23.58624825]
[1733233333553,2.663,222.64,222.49,20.52624825]
[1733233334157,1.3169,222.64,222.49,20.52624825]
[1733233334360,2.2453,222.65,222.49,20.52624825]
[1733233334555,3.06,222.67,222.53,20.52624825]
[1733233334758,3.06,222.67,222.54,4.4688]
[1733233334963,23.22284825,222.71,222.54,4.4688]
[1733233335155,23.22284825,222.71,222.56,2.2461]
[1733233335357,23.22284825,222.71,222.54,4.4688]
[1733233335653,2.6966,222.71,222.58,20.52624825]
[1733233336458,2.2448,222.7,222.61,2.2456]
[1733233336659,2.6966,222.71,222.6,3.06]
[1733233336957,2.2454,222.64,222.55,5.7524]
[1733233337259,20.52624825,222.67,222.46,20.52624825]
[1733233337463,2.2463,222.55,222.47,1.2821]
[1733233337663,3.06,222.61,222.47,1.2821]
[1733233337962,20.52624825,222.59,222.47,1.2821]
[1733233338159,20.52624825,222.55,222.38,20.52624825]
[1733233338365,5.7334,222.54,222.36,3.06]
[1733233338553,2.2472,222.46,222.36,5.3082]
[1733233338752,20.52624825,222.51,222.33,21.80834825]
[1733233338753,3.06,222.47,222.33,21.80834825]
[1733233338960,23.58624825,222.47,222.33,1.2821]
[1733233339262,20.52624825,222.53,222.37,20.52624825]
[1733233339464,5.7334,222.54,222.38,3.06]
[1733233340159,2.2465,222.53,222.45,2.2473]
[1733233340363,3.06,222.58,222.44,3.06]
[1733233340659,2.2455,222.63,222.53,2.2464]
[1733233340860,20.52624825,222.67,222.51,3.06]
[1733233341057,20.52624825,222.63,222.46,3.06]
[1733233341364,20.52624825,222.59,222.45,1.3273]
[1733233341557,1.3508,222.58,222.45,1.3273]
[1733233341757,1.3508,222.58,222.5,2.2468]
[1733233342464,3.06,222.61,222.48,3.06]
[1733233342664,20.52624825,222.67,222.49,20.52624825]
[1733233342860,2.2455,222.64,222.49,20.52624825]
[1733233343064,23.58624825,222.67,222.49,23.28424825]
[1733233343260,2.2454,222.64,222.56,2.2461]
[1733233343661,23.58624825,222.67,222.56,2.2461]
[1733233343857,2.2454,222.65,222.49,23.28424825]
[1733233344064,20.52624825,222.71,222.53,20.52624825]
[1733233344261,2.587,222.74,222.57,20.52624825]
[1733233344569,1.2955,222.74,222.58,1.411]
[1733233344870,66.78732788,222.85,222.58,1.411]
[1733233344871,1.2915,222.84,222.58,1.411]
[1733233345066,21.81774825,222.84,222.65,20.52624825]
[1733233345390,21.81774825,222.84,222.66,5.799]
[1733233345568,1.2915,222.84,222.75,2.2442]
[1733233345768,1.2915,222.84,222.73,3.06]
[1733233345966,2.2435,222.83,222.75,2.2442]
[1733233346165,2.2435,222.83,222.73,3.06]
[1733233346365,66.78732788,222.85,222.73,3.06]
[1733233346573,20.52624825,222.84,222.68,20.52624825]
[1733233346766,20.52624825,222.84,222.69,3.06]
[1733233347263,20.52624825,222.82,222.69,3.06]
[1733233347469,20.52624825,222.82,222.66,2.739]
[1733233347771,2.2441,222.77,222.69,2.2448]
[1733233348162,23.58624825,222.82,222.67,3.06]
[1733233348362,2.244,222.78,222.7,2.2447]
[1733233348565,23.58624825,222.82,222.67,3.06]
[1733233349074,2.2441,222.77,222.69,2.2449]
[1733233349265,66.78732788,222.85,222.67,3.06]
[1733233349470,66.78732788,222.85,222.69,20.52624825]
[1733233349670,2.2437,222.81,222.73,2.2444]
[1733233349975,20.52624825,222.82,222.67,3.06]
[1733233350174,2.2442,222.76,222.68,3.06]
[1733233350475,20.52624825,222.82,222.68,3.06]
[1733233350872,2.2443,222.75,222.68,3.06]
[1733233351071,2.2443,222.75,222.66,2.739]
[1733233351270,20.52624825,222.78,222.67,3.06]
[1733233351471,20.52624825,222.78,222.65,3.02]
[1733233352067,21.84064825,222.82,222.65,23.54624825]
[1733233352376,66.78732788,222.85,222.69,20.52624825]
[1733233352576,2.2435,222.83,222.75,2.2443]
[1733233353171,20.52624825,222.86,222.74,3.02]
[1733233353772,2.2434,222.84,222.74,3.02]
[1733233353976,20.52624825,222.86,222.74,3.02]
[1733233354174,1.3144,222.89,222.74,3.02]
[1733233354175,2.2432,222.87,222.79,2.2438]
[1733233354376,20.52624825,222.98,222.8,3.02]
[1733233354576,1.4135,222.99,222.84,20.52624825]
[1733233354778,3.02,223.04,222.85,3.02]
[1733233354779,23.54624825,223.04,222.85,3.02]
[1733233355082,20.52624825,223.01,222.86,3.02]
[1733233355676,2.2423,222.95,222.87,2.243]
[1733233355975,2.2423,222.95,222.86,3.02]
[1733233355976,3.02,223.04,222.86,23.54624825]
[1733233356484,20.52624825,223.05,222.86,23.54624825]
[1733233356678,20.52624825,223.05,222.87,1.4065]
[1733233356879,2.2416,223.02,222.87,1.4065]
[1733233357076,20.52624825,223.05,222.87,1.4065]
[1733233357782,34.57074484,223.06,222.87,26.9629037]
[1733233358090,34.57074484,223.06,222.86,3.02]
[1733233358285,33.16824484,223.02,222.87,3.02]
[1733233358584,33.16824484,223.02,222.83,4.3694]
[1733233358585,2.2427,222.91,222.83,4.3694]
[1733233358774,33.16824484,222.98,222.82,3.02]
[1733233359486,2.2425,222.93,222.85,2.2433]
[1733233359781,2.2425,222.93,222.82,1.61745214]
[1733233359990,36.18824484,223.02,222.82,1.61745214]
[1733233360294,3.02,223.04,222.85,33.16824484]
[1733233360483,338.79330094,223.06,222.89,33.16824484]
[1733233360484,305.6250561,223.06,222.89,33.16824484]
[1733233360685,1.4025,223.06,222.9,3.02]
[1733233360888,34.57074484,223.06,222.9,3.02]
[1733233361492,1.4025,223.06,222.92,33.16824484]
[1733233361692,2.2413,223.05,222.92,33.16824484]
[1733233362087,2.2415,223.03,222.92,33.16824484]
[1733233362293,1.3875,223.07,222.92,33.16824484]
[1733233362991,2.2414,223.04,222.97,2.242]
[1733233363190,33.16824484,223.1,222.96,3.02]
[1733233363384,1.3759,223.11,222.96,36.18824484]
[1733233363581,1.3759,223.11,222.97,1.3891]
[1733233363785,2.2412,223.06,223.0,2.2418]
[1733233363983,1.3759,223.11,222.97,1.3891]
[1733233365696,1.3759,223.11,223.03,2.2415]
[1733233365892,1.3759,223.11,222.97,1.3891]
[1733233365893,1.3759,223.11,223.02,3.02]
[1733233366589,2.2412,223.08,223.02,3.02]
[1733233366887,1.3759,223.11,223.02,3.02]
[1733233368300,2.241,223.11,223.02,3.02]
[1733233369090,2.241,223.11,223.05,2.2415]
[1733233369296,2.241,223.11,223.02,3.02]
[1733233369492,2.2413,223.07,223.02,3.02]
[1733233369697,33.16824484,223.14,223.02,3.02]
[1733233370094,33.16824484,223.14,223.01,2.2419]
[1733233370493,33.16824484,223.14,223.0,3.02]
[1733233370695,33.16824484,223.08,222.89,36.18824484]
[1733233370991,3.02,223.07,222.89,37.53184484]
[1733233371196,33.16824484,223.04,222.89,1.3436]
[1733233371398,33.16824484,223.04,222.85,33.16824484]
[1733233371597,4.0096,223.07,222.89,33.16824484]
[1733233371598,7.0296,223.07,222.89,33.16824484]
[1733233371892,5.6746,223.07,222.9,5.6808]
[1733233372197,4.343,223.15,222.97,33.16824484]
[1733233372394,4.343,223.15,222.98,4.399]
[1733233372591,33.59067484,223.16,222.98,4.399]
[1733233372795,0.42243,223.16,223.01,33.16824484]
[1733233373595,2.2405,223.15,223.01,33.16824484]
[1733233373792,0.42243,223.16,223.01,33.16824484]
[1733233373996,0.42243,223.16,223.02,2.7491]
[1733233374192,2.66283,223.16,223.09,2.241]
[1733233374502,2.66283,223.16,223.07,3.02]
[1733233374503,0.42243,223.16,223.07,3.02]
[1733233374705,0.42243,223.16,223.13,2.2406]
[1733233375009,0.42243,223.16,223.07,3.02]
[1733233375300,0.42243,223.16,223.12,2.2408]
[1733233376203,0.42243,223.16,223.1,2.241]
[1733233376397,0.42243,223.16,223.07,3.02]
[1733233376598,2.66283,223.16,223.09,2.241]
[1733233376904,0.42243,223.16,223.07,3.02]
[1733233377808,33.59067484,223.16,223.02,5.7691]
[1733233378201,2.66293,223.16,223.06,2.2414]
[1733233378404,0.42243,223.16,223.02,6.12689423]
[1733233378599,0.42243,223.16,223.05,0.35779423]
[1733233378807,0.42243,223.16,223.02,5.7691]
[1733233378808,0.42243,223.16,223.07,0.35779423]
[1733233379199,0.42243,223.16,223.08,5.16165868]
[1733233379404,2.2405,223.15,223.09,2.2411]